bitfinex-derivatives/quotes_BTCF0:USTF0_20241208
["timestamp","ask_amount","ask_price","bid_price","bid_amount"]
[1733663841043,0.1,100120.0,100100.0,0.62305707]
[1733663841246,0.07989247,100120.0,100110.0,0.445521]
[1733663841447,0.07989247,100120.0,100110.0,0.45488428]
[1733663841743,0.07989247,100120.0,100110.0,0.9375101]
[1733663842446,0.07989247,100120.0,100110.0,1.03739412]
[1733663843937,0.08189247,100120.0,100110.0,1.06219412]
[1733663844544,0.08189247,100120.0,100110.0,0.88484303]
[1733663844744,0.08189247,100120.0,100110.0,0.58484303]
[1733663845756,0.08189247,100120.0,100110.0,1.0624751]
[1733663846239,0.08189247,100120.0,100110.0,0.88484303]
[1733663847052,0.14943311,100150.0,100140.0,0.044907]
[1733663847245,8.697e-05,100150.0,100140.0,0.77462039]
[1733663847444,8.697e-05,100150.0,100140.0,0.84882039]
[1733663847647,8.697e-05,100150.0,100140.0,0.95494582]
[1733663847848,8.697e-05,100150.0,100140.0,1.40488949]
[1733663847849,9.7e-07,100150.0,100140.0,1.40488949]
[1733663848056,9.7e-07,100150.0,100140.0,1.10488949]
[1733663848552,0.00200097,100150.0,100140.0,1.10517047]
[1733663848947,0.00200097,100150.0,100140.0,1.10497549]
[1733663849256,0.00200097,100150.0,100140.0,1.40525647]
[1733663849651,0.00200097,100150.0,100140.0,1.10525647]
[1733663849953,0.25434614,100200.0,100150.0,0.054899]
[1733663850254,0.1386,100200.0,100190.0,0.405685]
[1733663850462,0.1386,100200.0,100190.0,0.40880387]
[1733663850746,0.1386,100200.0,100190.0,0.50865907]
[1733663850948,0.1386,100200.0,100190.0,0.50874604]
[1733663853066,0.18348,100200.0,100190.0,0.00320584]
[1733663853449,0.54428,100200.0,100190.0,0.00320584]
[1733663853845,0.54428,100200.0,100190.0,8.697e-05]
[1733663854456,1.12498,100200.0,100170.0,0.405693]
[1733663854653,0.044889,100180.0,100170.0,0.40881192]
[1733663854854,0.044889,100180.0,100170.0,0.50549837]
[1733663855051,0.083589,100180.0,100170.0,0.50549837]
[1733663855254,0.044894,100170.0,100160.0,0.044898]
[1733663855455,0.044894,100170.0,100150.0,0.45209663]
[1733663855770,0.044898,100160.0,100150.0,0.41031637]
[1733663855951,0.044898,100160.0,100150.0,0.51014167]
[1733663856148,0.044898,100160.0,100150.0,0.00461737]
[1733663856459,0.044898,100160.0,100150.0,0.04952037]
[1733663856460,0.083698,100160.0,100150.0,0.04952037]
[1733663857053,0.083698,100160.0,100150.0,0.04640063]
[1733663857257,0.083698,100160.0,100150.0,0.00149763]
[1733663857456,0.444498,100160.0,100150.0,0.00149763]
[1733663858153,0.3608,100160.0,100150.0,0.00149763]
[1733663858460,0.3608,100170.0,100160.0,0.044898]
[1733663859157,0.3608,100170.0,100160.0,0.14474323]
[1733663860457,0.91333714,100180.0,100170.0,0.044894]
[1733663860859,0.763991,100180.0,100170.0,0.044894]
[1733663861061,0.044895,100170.0,100160.0,0.044896]
[1733663861363,0.044895,100170.0,100160.0,0.15283252]
[1733663863660,0.044895,100170.0,100160.0,0.05300753]
[1733663864065,0.044895,100170.0,100160.0,0.1528428]
[1733663865260,0.044895,100170.0,100160.0,0.15908227]
[1733663865970,0.044895,100170.0,100160.0,0.1528428]
[1733663866171,0.044895,100170.0,100160.0,0.15908227]
[1733663868868,0.19424114,100170.0,100160.0,0.15908227]
[1733663870680,0.19424114,100170.0,100160.0,0.15908205]
[1733663871362,0.37345489,100170.0,100160.0,0.15908205]
[1733663874265,0.22410875,100170.0,100160.0,0.15908205]
[1733663875970,0.19399154,100170.0,100160.0,0.15936258]
[1733663876273,0.37320529,100170.0,100160.0,0.15936258]
[1733663877265,0.37320529,100170.0,100160.0,0.05952731]
[1733663877266,0.41080529,100170.0,100160.0,0.05952731]
[1733663879670,0.41080529,100170.0,100160.0,0.044896]
[1733663880680,0.41080529,100170.0,100160.0,0.04988758]
[1733663881269,0.26170875,100170.0,100160.0,0.05300732]
[1733663881476,0.26170875,100170.0,100160.0,0.05328845]
[1733663881974,0.26170875,100170.0,100160.0,0.05952793]
[1733663882571,0.26170875,100170.0,100160.0,0.06077607]
[1733663882873,0.443295,100170.0,100160.0,0.02087165]
[1733663883074,0.65240143,100170.0,100160.0,0.02059028]
[1733663883277,0.89218108,100170.0,100160.0,0.02059028]
[1733663883776,0.65240143,100170.0,100160.0,0.02059028]
[1733663884273,0.89218108,100170.0,100160.0,0.02059028]
[1733663886169,0.65240143,100170.0,100160.0,0.06548828]
[1733663886375,0.29160143,100170.0,100160.0,0.06548828]
[1733663886576,0.443295,100170.0,100160.0,0.06576965]
[1733663886773,0.65240143,100170.0,100160.0,0.06576965]
[1733663887572,0.65240143,100170.0,100160.0,0.05953017]
[1733663890171,0.29160143,100170.0,100160.0,0.0592488]
[1733663890377,0.29160143,100170.0,100160.0,0.05953017]
[1733663891172,0.29160143,100170.0,100160.0,0.0592488]
[1733663892573,0.29160143,100170.0,100160.0,0.06378756]
[1733663893573,0.29160143,100170.0,100160.0,0.07002704]
[1733663894091,0.29160143,100170.0,100160.0,0.05567624]
[1733663894273,0.29160143,100170.0,100160.0,0.07002704]
[1733663894475,0.29160143,100170.0,100160.0,0.53066231]
[1733663894476,0.20910643,100170.0,100160.0,0.53066231]
[1733663894676,0.17949956,100170.0,100160.0,0.53094385]
[1733663894976,0.22439356,100170.0,100160.0,0.15908407]
[1733663895179,0.22439356,100170.0,100160.0,0.0143508]
[1733663895180,0.25400043,100170.0,100160.0,0.0143508]
[1733663895373,0.32890043,100170.0,100160.0,0.0143508]
[1733663895574,0.32890043,100170.0,100160.0,0.0592488]
[1733663897683,0.32890043,100170.0,100160.0,0.05924904]
[1733663898570,0.33962847,100170.0,100160.0,0.05924904]
[1733663904484,0.33962847,100170.0,100160.0,0.01435104]
[1733663905075,0.49132204,100170.0,100160.0,0.01435104]
[1733663905283,1.03110169,100170.0,100160.0,0.01435104]
[1733663905475,0.044903,100150.0,100140.0,0.04518864]
[1733663905682,0.61515474,100150.0,100130.0,0.03827947]
[1733663905976,0.09344375,100140.0,100130.0,0.08319047]
[1733663906176,0.30289549,100140.0,100130.0,0.04669047]
[1733663906489,0.25435874,100140.0,100130.0,0.00149783]
[1733663906787,0.25435874,100140.0,100130.0,0.04640983]
[1733663907486,0.25435874,100140.0,100130.0,0.05440983]
[1733663907487,0.044907,100140.0,100130.0,0.05440983]
[1733663908389,0.27275296,100140.0,100130.0,0.05440983]
[1733663908682,0.2242152,100140.0,100130.0,0.05440983]
[1733663908892,0.2242152,100140.0,100130.0,0.05840983]
[1733663910490,1.24912816,100150.0,100130.0,0.05840983]
[1733663910491,0.99668994,100150.0,100130.0,0.05840983]
[1733663910785,0.09344474,100140.0,100130.0,0.05840983]
[1733663910981,0.044907,100140.0,100130.0,0.05840983]
[1733663913391,0.19418564,100140.0,100130.0,0.05840983]
[1733663913594,0.19418564,100140.0,100130.0,0.06465121]
[1733663914093,0.31360167,100140.0,100130.0,0.06465121]
[1733663914981,0.31360167,100140.0,100130.0,0.05840983]
[1733663915297,0.31360167,100140.0,100130.0,0.06465121]
[1733663915589,0.31360167,100140.0,100130.0,0.06964431]
[1733663917386,0.31360167,100140.0,100130.0,0.072765]
[1733663917783,0.55498564,100140.0,100130.0,0.02011379]
[1733663918082,0.705707,100140.0,100110.0,0.044919]
[1733663918282,0.1642914,100120.0,100110.0,0.05615505]
[1733663918494,0.1642914,100120.0,100110.0,0.06699258]
[1733663918689,0.1642914,100120.0,100110.0,0.05615546]
[1733663921290,0.1642914,100120.0,100110.0,0.00499398]
[1733663921495,0.35341065,100120.0,100110.0,0.00499398]
[1733663921699,0.35441065,100120.0,100110.0,0.00499398]
[1733663922398,0.71521065,100120.0,100110.0,0.00499398]
[1733663922896,0.044921,100110.0,100100.0,0.05559063]
[1733663923095,0.16414948,100110.0,100100.0,0.06058504]
[1733663923292,0.16414948,100110.0,100100.0,0.16047017]
[1733663923796,0.16414948,100110.0,100100.0,0.14980254]
[1733663923997,0.60304948,100110.0,100100.0,0.00499441]
[1733663924294,0.60304948,100110.0,100100.0,0.00599441]
[1733663924491,0.75226873,100110.0,100100.0,0.00599441]
[1733663925082,0.75226873,100110.0,100100.0,0.003]
[1733663925290,0.60304948,100110.0,100100.0,0.003]
[1733663926697,0.63304025,100110.0,100100.0,0.003]
[1733663928994,0.75214396,100110.0,100100.0,0.003]
[1733663930193,0.75214396,100110.0,100100.0,0.00612198]
[1733663930593,0.76286444,100110.0,100100.0,0.00612198]
[1733663930997,1.06286444,100110.0,100100.0,0.00612198]
[1733663931199,1.06286444,100110.0,100080.0,0.41821248]
[1733663931200,0.04493,100090.0,100080.0,0.41821248]
[1733663931392,0.04493,100090.0,100080.0,0.42945168]
[1733663932496,0.04493,100090.0,100080.0,0.43445168]
[1733663932703,0.04593,100090.0,100080.0,0.44345168]
[1733663933293,0.04593,100090.0,100080.0,0.48235168]
[1733663934698,0.04593,100090.0,100080.0,0.88254752]
[1733663934699,0.001,100090.0,100080.0,0.88254752]
[1733663934904,0.325623,100110.0,100080.0,0.96016675]
[1733663935092,0.325623,100110.0,100100.0,0.405725]
[1733663935410,0.325623,100110.0,100100.0,0.4169622]
[1733663935595,0.325623,100110.0,100100.0,0.4537622]
[1733663936108,0.044923,100110.0,100100.0,0.45376222]
[1733663937702,0.044923,100110.0,100100.0,0.45676222]
[1733663937902,0.044923,100110.0,100100.0,0.41996222]
[1733663938093,0.044923,100110.0,100100.0,0.4202431]
[1733663938402,0.16402671,100110.0,100100.0,0.4212431]
[1733663939604,0.16402671,100110.0,100100.0,0.409725]
[1733663939805,0.16402671,100110.0,100100.0,0.42124332]
[1733663942107,0.16402671,100110.0,100100.0,0.4321432]
[1733663942697,0.16402671,100110.0,100100.0,0.42590029]
[1733663942902,0.16402671,100110.0,100100.0,0.42062488]
[1733663943105,0.16402671,100110.0,100100.0,0.43526483]
[1733663943503,0.16402671,100110.0,100100.0,0.44462925]
[1733663943806,0.16402671,100110.0,100100.0,0.43526489]
[1733663944506,0.31324596,100110.0,100100.0,0.43526489]
[1733663946913,0.31324596,100110.0,100100.0,0.43526535]
[1733663947109,0.55494225,100110.0,100100.0,0.01864047]
[1733663947319,0.81157814,100110.0,100100.0,0.01835878]
[1733663947510,0.70295889,100110.0,100100.0,0.01835878]
[1733663947905,0.524323,100110.0,100100.0,0.01835878]
[1733663948203,1.01447474,100110.0,100100.0,0.01835878]
[1733663950513,1.01447474,100110.0,100100.0,0.01836129]
[1733663951209,0.73377474,100110.0,100100.0,0.01836129]
[1733663953921,0.73377474,100110.0,100100.0,0.01836145]
[1733663956016,0.74449431,100110.0,100100.0,0.01836145]
[1733663958322,1.02519431,100110.0,100100.0,0.01836145]
[1733663958516,1.26456773,100110.0,100100.0,0.01211734]
[1733663958716,0.81574257,100110.0,100100.0,0.01211734]
[1733663960709,1.17654257,100110.0,100100.0,0.01211734]
[1733663961224,1.17654257,100110.0,100100.0,0.00712215]
[1733663961623,1.17654257,100110.0,100100.0,0.01211759]
[1733663961624,1.38599431,100110.0,100100.0,0.01211759]
[1733663962120,1.40608047,100110.0,100100.0,0.01211759]
[1733663963218,1.12538047,100110.0,100100.0,0.01211759]
[1733663965826,1.12538047,100110.0,100100.0,0.05704259]
[1733663966034,0.76458047,100110.0,100100.0,0.05704259]
[1733663966218,0.76458047,100110.0,100100.0,0.41784259]
[1733663966219,0.044923,100110.0,100100.0,0.41784259]
[1733663966523,0.044923,100110.0,100100.0,0.42408619]
[1733663966524,0.32888555,100110.0,100100.0,0.42408619]
[1733663966726,0.14948978,100110.0,100100.0,0.56296334]
[1733663966927,0.26907509,100110.0,100100.0,0.56296334]
[1733663967630,0.20926212,100110.0,100100.0,0.73970533]
[1733663967934,0.20926212,100110.0,100100.0,0.73970117]
[1733663968430,0.24948978,100120.0,100110.0,0.044921]
[1733663968620,0.24948978,100120.0,100110.0,0.42036007]
[1733663968820,0.1,100120.0,100110.0,0.42036007]
[1733663969030,0.1,100120.0,100110.0,0.52025518]
[1733663969326,0.1,100120.0,100110.0,0.69699717]
[1733663969828,0.101,100120.0,100110.0,0.69699717]
[1733663970031,0.102,100120.0,100110.0,0.69699717]
[1733663970917,0.101,100120.0,100110.0,0.69699717]
[1733663971123,0.101,100120.0,100110.0,0.69999717]
[1733663971520,0.101,100120.0,100110.0,0.77889717]
[1733663972032,0.101,100120.0,100110.0,0.78589717]
[1733663973227,0.101,100120.0,100110.0,0.60915518]
[1733663976141,0.101,100120.0,100110.0,0.6088736]
[1733663977624,0.145916,100120.0,100110.0,0.43007849]
[1733663977829,0.186916,100120.0,100110.0,0.43007849]
[1733663978032,0.547716,100120.0,100110.0,0.0630361]
[1733663978236,0.547716,100120.0,100110.0,0.0181151]
[1733663978547,0.69720578,100120.0,100110.0,0.01312119]
[1733663979127,0.69720578,100120.0,100110.0,0.01112119]
[1733663979431,0.69720578,100120.0,100110.0,0.00412119]
[1733663979631,0.69620578,100120.0,100110.0,0.05204219]
[1733663981340,0.87560155,100120.0,100110.0,0.05204219]
[1733663981646,0.87560155,100120.0,100110.0,0.048921]
[1733663981831,0.87560155,100120.0,100110.0,0.0071215]
[1733663982734,0.69620578,100120.0,100110.0,0.0071215]
[1733663985942,0.044921,100110.0,100100.0,0.044923]
[1733663986142,0.083621,100110.0,100100.0,0.04991757]
[1733663988034,0.23311078,100110.0,100100.0,0.04991757]
[1733663988743,0.23411078,100110.0,100100.0,0.05991757]
[1733663988933,0.27611078,100110.0,100100.0,0.01499457]
[1733663989341,0.63691078,100110.0,100100.0,0.01499457]
[1733663989739,0.81630655,100110.0,100100.0,0.01499457]
[1733663990236,0.044925,100100.0,100090.0,0.405727]
[1733663990436,0.084725,100100.0,100090.0,0.41197068]
[1733663991043,0.445525,100100.0,100090.0,0.00624368]
[1733663991344,0.445525,100100.0,100080.0,0.00177965]
[1733663991345,0.04493,100090.0,100080.0,0.04643266]
[1733663991547,0.44743,100090.0,100080.0,0.05267654]
[1733663992039,0.08663,100090.0,100080.0,0.00774254]
[1733663992242,0.59691978,100090.0,100080.0,0.00149866]
[1733663993041,0.59791978,100090.0,100080.0,0.01049866]
[1733663993547,0.63691978,100090.0,100080.0,0.05543266]
[1733663994753,0.63691978,100090.0,100080.0,0.06043266]
[1733663994947,0.63691978,100090.0,100080.0,0.05143266]
[1733663995141,0.63691978,100090.0,100080.0,0.06043266]
[1733663995839,0.23118978,100090.0,100080.0,0.06043266]
[1733663996050,0.23118978,100090.0,100080.0,0.52739233]
[1733663996051,0.0817,100090.0,100080.0,0.52739233]
[1733663997845,0.0817,100090.0,100080.0,0.16971422]
[1733663998156,0.0817,100090.0,100080.0,0.53051422]
[1733664000359,0.0427,100090.0,100080.0,0.53550923]
[1733664002265,0.0427,100090.0,100080.0,0.53579054]
[1733664004173,0.0427,100090.0,100080.0,0.53550839]
[1733664004467,0.08763,100090.0,100080.0,0.53550839]
[1733664004665,0.08763,100090.0,100080.0,0.43559332]
[1733664004965,0.08763,100090.0,100080.0,0.07479367]
[1733664005758,0.08763,100090.0,100080.0,0.43559367]
[1733664006071,0.23711978,100090.0,100080.0,0.06854975]
[1733664006769,0.23711978,100090.0,100080.0,0.06855072]
[1733664006770,0.77731555,100090.0,100080.0,0.06855072]
[1733664007767,0.77731555,100090.0,100080.0,0.06855081]
[1733664008670,0.77731555,100090.0,100080.0,0.02361681]
[1733664009073,0.62782577,100090.0,100080.0,0.02361681]
[1733664009276,0.62782577,100090.0,100080.0,0.02211815]
[1733664009777,0.62782577,100090.0,100080.0,0.01712236]
[1733664009976,0.62782577,100090.0,100080.0,0.02211845]
[1733664010366,0.62782577,100090.0,100080.0,0.02211865]
[1733664012473,0.63854857,100090.0,100080.0,0.02211865]
[1733664014467,0.63854857,100090.0,100060.0,0.54818805]
[1733664014468,0.044939,100070.0,100060.0,0.59312905]
[1733664014668,0.044939,100070.0,100060.0,0.42263226]
[1733664014976,0.080439,100070.0,100060.0,0.42263226]
[1733664015369,0.080439,100070.0,100060.0,0.42291386]
[1733664015671,0.081439,100070.0,100060.0,0.43191386]
[1733664015872,0.081439,100070.0,100060.0,0.43963226]
[1733664015873,0.082439,100070.0,100060.0,0.43963226]
[1733664016178,0.23183695,100070.0,100060.0,0.43963226]
[1733664016977,0.23083695,100070.0,100060.0,0.43163226]
[1733664017166,0.081439,100070.0,100060.0,0.43563248]
[1733664017362,0.23083695,100070.0,100060.0,0.43563248]
[1733664017571,0.22983695,100070.0,100060.0,0.42663248]
[1733664017769,0.23083695,100070.0,100060.0,0.42663248]
[1733664018363,0.081439,100070.0,100060.0,0.42663248]
[1733664020503,0.081439,100070.0,100060.0,0.42038706]
[1733664020663,0.081439,100070.0,100060.0,0.42663248]
[1733664021478,0.23083695,100070.0,100060.0,0.42663248]
[1733664023371,0.001,100070.0,100060.0,0.70359136]
[1733664024669,0.001,100070.0,100060.0,0.70858722]
[1733664026576,0.001,100070.0,100060.0,0.71170965]
[1733664027576,0.001,100070.0,100060.0,1.01170965]
[1733664027782,0.23002995,100090.0,100060.0,1.69528599]
[1733664027977,0.23002995,100090.0,100080.0,0.405734]
[1733664028183,0.23002995,100090.0,100080.0,0.42009771]
[1733664028385,0.34957498,100090.0,100080.0,0.42009771]
[1733664028772,0.34957498,100090.0,100080.0,0.52003275]
[1733664031583,0.30464298,100090.0,100080.0,0.52003275]
[1733664031777,0.30464298,100090.0,100080.0,0.88111424]
[1733664031778,0.11954503,100090.0,100080.0,0.88111424]
[1733664031979,0.11954503,100090.0,100080.0,1.08851198]
[1733664032170,0.26894298,100100.0,100090.0,0.04493]
[1733664032376,0.26894298,100100.0,100090.0,0.49179371]
[1733664032575,0.26894298,100100.0,100090.0,0.4920752]
[1733664032781,0.26894298,100100.0,100090.0,0.59199027]
[1733664033072,0.11954503,100100.0,100090.0,0.76978801]
[1733664033276,0.12254503,100100.0,100090.0,0.59199027]
[1733664033479,0.12454503,100100.0,100090.0,0.59199027]
[1733664034282,0.12454503,100100.0,100090.0,0.57734507]
[1733664034479,0.12454503,100100.0,100090.0,0.59198595]
[1733664035075,0.12454503,100100.0,100090.0,0.59170429]
[1733664035385,0.12454503,100100.0,100090.0,0.59198595]
[1733664035776,0.12454503,100100.0,100090.0,0.59170429]
[1733664037787,0.12454503,100100.0,100090.0,0.57734507]
[1733664037988,0.12454503,100100.0,100090.0,0.58670981]
[1733664038289,0.12454503,100100.0,100090.0,0.59170434]
[1733664041382,0.005,100100.0,100090.0,0.89170436]
[1733664041687,0.005,100100.0,100090.0,0.89198599]
[1733664041884,1e-06,100100.0,100090.0,1.06978373]
[1733664042088,0.11954503,100120.0,100110.0,0.044916]
[1733664042280,0.30604298,100130.0,100120.0,0.044912]
[1733664042488,0.15664503,100130.0,100120.0,0.42006973]
[1733664042886,0.15664503,100130.0,100120.0,0.51997482]
[1733664043085,0.20155203,100130.0,100120.0,0.51373321]
[1733664043786,0.21055203,100130.0,100120.0,0.51373321]
[1733664044291,0.091007,100130.0,100120.0,0.51373321]
[1733664045488,0.098007,100130.0,100120.0,0.51473321]
[1733664046395,0.098007,100130.0,100120.0,0.52535525]
[1733664048096,0.098007,100130.0,100120.0,0.52036071]
[1733664048298,0.098007,100130.0,100120.0,0.52035992]
[1733664048497,0.21755203,100130.0,100120.0,0.52035992]
[1733664048695,0.21755203,100130.0,100120.0,0.52348071]
[1733664048991,0.21755203,100130.0,100120.0,0.52035992]
[1733664049789,0.36694998,100130.0,100120.0,0.52035992]
[1733664050089,0.21755203,100130.0,100120.0,0.52035992]
[1733664050290,0.36694998,100130.0,100120.0,0.52035992]
[1733664050497,0.21755203,100130.0,100120.0,0.52035992]
[1733664050891,0.36694998,100130.0,100120.0,0.52035992]
[1733664051598,0.36694998,100130.0,100120.0,0.51723913]
[1733664052001,0.36694998,100130.0,100120.0,0.52035994]
[1733664054291,0.36694998,100130.0,100120.0,0.52535324]
[1733664055116,0.36694998,100130.0,100120.0,0.51723913]
[1733664055400,0.24740495,100130.0,100120.0,0.52535324]
[1733664056200,0.32177741,100130.0,100120.0,0.53159486]
[1733664056697,0.0531,100130.0,100120.0,0.53159486]
[1733664056998,0.0531,100130.0,100120.0,0.531594]
[1733664057785,0.0461,100130.0,100120.0,0.530594]
[1733664057998,0.0421,100130.0,100120.0,0.530594]
[1733664058196,0.17037946,100130.0,100120.0,0.530594]
[1733664058389,0.17037946,100130.0,100120.0,0.53087553]
[1733664058390,0.014,100130.0,100120.0,0.53087553]
[1733664058590,0.014,100130.0,100120.0,0.74069174]
[1733664058786,0.014,100130.0,100120.0,0.97810634]
[1733664060200,0.014,100130.0,100120.0,1.27810634]
[1733664060400,0.012,100130.0,100120.0,1.27910634]
[1733664060699,0.012,100130.0,100120.0,0.97910634]
[1733664061395,0.007,100130.0,100120.0,0.97910634]
[1733664061596,0.01,100130.0,100120.0,0.97910634]
[1733664063803,0.01,100130.0,100120.0,0.74169174]
[1733664064013,0.01,100130.0,100120.0,0.73857112]
[1733664064191,0.01,100130.0,100120.0,1.04168967]
[1733664064391,0.01,100130.0,100120.0,1.26475147]
[1733664064392,0.00387802,100130.0,100120.0,1.26475147]
[1733664064588,0.00387802,100130.0,100120.0,1.27910408]
[1733664065799,0.00087802,100130.0,100120.0,1.27910395]
[1733664065998,0.00187802,100130.0,100120.0,1.27910395]
[1733664066201,0.15636298,100150.0,100130.0,0.044906]
[1733664066401,0.03708352,100150.0,100140.0,0.76678426]
[1733664066596,0.03708352,100150.0,100140.0,0.78113674]
[1733664066796,0.03708352,100150.0,100140.0,0.88101189]
[1733664067795,0.04608352,100150.0,100140.0,0.88201189]
[1733664068002,0.04908352,100150.0,100140.0,0.88201189]
[1733664068806,0.05108352,100150.0,100140.0,0.88201189]
[1733664069213,0.05108352,100150.0,100140.0,0.86737815]
[1733664069502,0.05108352,100150.0,100140.0,0.87577128]
[1733664069699,0.05108352,100150.0,100140.0,0.88201094]
[1733664070099,0.05108352,100150.0,100140.0,0.88172937]
[1733664071407,0.05108352,100150.0,100140.0,0.88201129]
[1733664071711,0.17036298,100150.0,100140.0,0.88201129]
[1733664073406,0.17036298,100150.0,100140.0,0.88172937]
[1733664074609,0.17036298,100150.0,100140.0,0.89197054]
[1733664076006,0.21526098,100150.0,100140.0,0.89197054]
[1733664076207,0.72545893,100150.0,100140.0,0.02587374]
[1733664076411,0.044907,100130.0,100120.0,0.405709]
[1733664076609,0.16423865,100130.0,100120.0,0.405709]
[1733664076911,0.16423865,100130.0,100120.0,0.5055642]
[1733664077216,0.2687296,100130.0,100120.0,0.5055642]
[1733664077403,0.3136366,100130.0,100120.0,0.51582202]
[1733664077718,0.3146366,100130.0,100120.0,0.51582202]
[1733664077900,0.3166366,100130.0,100120.0,0.51582202]
[1733664078604,0.16723865,100130.0,100120.0,0.51582202]
[1733664079610,0.20373865,100130.0,100120.0,0.51582202]
[1733664080805,0.20373865,100130.0,100120.0,0.301]
[1733664080806,0.3531366,100130.0,100120.0,0.301]
[1733664081113,0.044916,100110.0,100100.0,0.23297831]
[1733664081302,0.044916,100110.0,100100.0,0.05518057]
[1733664081504,0.20081518,100110.0,100100.0,0.05518057]
[1733664082111,0.0365,100110.0,100100.0,0.51615796]
[1733664082312,0.0365,100110.0,100100.0,0.69367342]
[1733664082510,0.0365,100110.0,100100.0,0.6939557]
[1733664082912,0.0365,100110.0,100100.0,0.6949557]
[1733664083411,0.0365,100110.0,100100.0,0.69667342]
[1733664083604,0.0365,100110.0,100100.0,0.6969557]
[1733664084007,0.0365,100110.0,100100.0,0.69667342]
[1733664084417,0.0365,100110.0,100100.0,0.70291556]
[1733664084719,0.0365,100110.0,100100.0,0.52511782]
[1733664086516,0.0365,100110.0,100100.0,0.53011154]
[1733664086707,0.0365,100110.0,100100.0,0.89091154]
[1733664087411,0.0365,100110.0,100100.0,0.89119368]
[1733664087616,0.0365,100110.0,100100.0,0.92789368]
[1733664088416,0.081416,100110.0,100100.0,0.79413745]
[1733664088918,0.17088923,100110.0,100100.0,0.79413745]
[1733664090615,0.17088923,100110.0,100100.0,0.78789531]
[1733664091011,0.29028841,100110.0,100100.0,0.78789531]
[1733664091518,0.17088923,100110.0,100100.0,0.78789531]
[1733664092014,0.12597323,100110.0,100100.0,0.88779042]
[1733664092206,0.12597323,100110.0,100100.0,0.89403327]
[1733664092404,0.12597323,100110.0,100100.0,0.89403308]
[1733664092610,0.0365,100110.0,100100.0,0.89403308]
[1733664093119,0.12597323,100110.0,100100.0,0.89403308]
[1733664093315,0.0365,100110.0,100100.0,0.89403308]
[1733664094925,0.0365,100110.0,100100.0,0.92973308]
[1733664097018,0.0365,100110.0,100100.0,0.92973216]
[1733664098411,0.081416,100110.0,100100.0,0.12751316]
[1733664098616,0.081416,100110.0,100100.0,0.01735648]
[1733664098617,0.17088923,100110.0,100100.0,0.01735648]
[1733664098812,0.20081518,100110.0,100100.0,0.01111453]
[1733664099016,0.20081518,100110.0,100090.0,0.4173949]
[1733664099017,1.544921,100100.0,100090.0,0.4173949]
[1733664099312,1.66805895,100100.0,100090.0,0.4173949]
[1733664099513,0.16805895,100100.0,100090.0,0.4173949]
[1733664100626,0.16905895,100100.0,100090.0,0.43063814]
[1733664101219,0.16905895,100100.0,100090.0,0.43363814]
[1733664101727,0.28845813,100100.0,100090.0,0.0665949]
[1733664101928,0.28845813,100100.0,100090.0,0.4273949]
[1733664102124,0.32705813,100100.0,100090.0,0.4273949]
[1733664102522,0.23762018,100100.0,100090.0,0.4273949]
[1733664102733,0.32709608,100100.0,100090.0,0.4273949]
[1733664103219,0.32709608,100100.0,100090.0,0.43363816]
[1733664103425,0.23762018,100100.0,100090.0,0.43363816]
[1733664105533,0.38701813,100100.0,100090.0,0.43363816]
[1733664106422,0.26761895,100100.0,100090.0,0.43363816]
[1733664107536,0.26761895,100100.0,100090.0,0.43363817]
[1733664108831,0.23775446,100100.0,100090.0,0.43363817]
[1733664109036,0.23775446,100100.0,100090.0,0.43863279]
[1733664109532,0.38715241,100100.0,100090.0,0.43863279]
[1733664111128,0.38715241,100100.0,100090.0,0.44175444]
[1733664111525,0.38715241,100100.0,100090.0,0.44175449]
[1733664111730,0.35345241,100100.0,100090.0,0.44175449]
[1733664111926,0.30853141,100100.0,100090.0,0.54165958]
[1733664112127,0.30853141,100100.0,100090.0,0.57904241]
[1733664113032,0.24880486,100100.0,100090.0,0.57904241]
[1733664113426,0.15913346,100100.0,100090.0,0.57904241]
[1733664114233,0.12053346,100100.0,100090.0,0.57904241]
[1733664114441,0.12053346,100100.0,100090.0,0.75683975]
[1733664114929,0.21021523,100100.0,100090.0,0.75683975]
[1733664115722,0.21021523,100100.0,100090.0,0.75534127]
[1733664116130,0.09068177,100100.0,100090.0,0.99247316]
[1733664116331,0.09068177,100100.0,100090.0,1.11144367]
[1733664116536,0.001,100100.0,100090.0,1.40260774]
[1733664116929,0.09068177,100100.0,100090.0,1.40260774]
[1733664119234,0.001,100100.0,100090.0,1.40260774]
[1733664122443,0.001,100100.0,100090.0,1.46476534]
[1733664123630,0.001,100100.0,100090.0,1.40241354]
[1733664123828,0.09068177,100100.0,100090.0,0.81448122]
[1733664124642,0.09068177,100100.0,100090.0,0.80823674]
[1733664125144,0.09068177,100100.0,100090.0,0.81447892]
[1733664125740,0.09068177,100100.0,100090.0,0.99236134]
[1733664126145,0.09068177,100100.0,100090.0,0.98924025]
[1733664126348,0.09068177,100100.0,100090.0,0.99236136]
[1733664127035,0.09068177,100100.0,100090.0,1.11124719]
[1733664127448,0.09068177,100100.0,100090.0,0.99236749]
[1733664128436,0.09068177,100100.0,100090.0,0.81447894]
[1733664128947,0.09068177,100100.0,100090.0,0.83420114]
[1733664129336,0.05077972,100100.0,100090.0,1.13096939]
[1733664129542,0.11953346,100110.0,100100.0,0.044921]
[1733664129747,0.11953346,100110.0,100100.0,0.59825149]
[1733664129947,0.11953346,100110.0,100100.0,0.8351892]
[1733664130140,0.11953346,100110.0,100100.0,0.93537692]
[1733664130646,0.11953346,100110.0,100100.0,0.69815652]
[1733664130843,0.11953346,100110.0,100100.0,0.70015652]
[1733664131040,0.11953346,100110.0,100100.0,0.70115652]
[1733664131951,0.16444946,100110.0,100100.0,0.60125143]
[1733664132256,0.34844741,100110.0,100100.0,0.37843966]
[1733664132440,0.22891395,100110.0,100100.0,0.37843966]
[1733664132640,0.22891395,100110.0,100100.0,0.37815703]
[1733664133043,1.72891395,100110.0,100100.0,0.408721]
[1733664133346,1.84850007,100110.0,100100.0,0.42336187]
[1733664135551,0.22891395,100110.0,100100.0,0.42336187]
[1733664136536,0.22891395,100110.0,100100.0,0.408721]
[1733664136740,0.22891395,100110.0,100100.0,0.42336191]
[1733664137240,1.72891395,100110.0,100100.0,0.42336191]
[1733664137742,1.90830972,100110.0,100100.0,0.37844091]
[1733664137935,1.75891177,100110.0,100100.0,0.01735795]
[1733664138138,1.75891177,100110.0,100090.0,0.59406815]
[1733664138340,0.38639964,100100.0,100090.0,0.60842665]
[1733664138740,0.26676469,100100.0,100090.0,0.43053588]
[1733664139150,0.44616046,100100.0,100090.0,0.43053588]
[1733664139350,0.44616046,100100.0,100090.0,0.43353588]
[1733664139749,0.44616046,100100.0,100090.0,0.44053588]
[1733664140261,0.26676469,100100.0,100090.0,0.44053588]
[1733664140452,0.26776469,100100.0,100090.0,0.44053588]
[1733664140844,0.26776469,100100.0,100090.0,0.43953588]